bitfinex-derivatives/quotes_SOLF0:USTF0_20250709
["timestamp","ask_amount","ask_price","bid_price","bid_amount"]
[1752059130508,0.04582883,153.22,153.19,2.39830738]
[1752059130709,4.70811953,153.21,153.19,2.39830738]
[1752059130911,0.04582883,153.22,153.19,2.39830738]
[1752059131110,4.70811953,153.21,153.19,2.39830738]
[1752059131305,0.04582883,153.22,153.19,2.39830738]
[1752059131509,4.70793774,153.21,153.19,2.39830738]
[1752059131710,0.04582883,153.22,153.19,2.39830738]
[1752059131910,4.70793332,153.21,153.19,2.39830738]
[1752059132211,0.04582883,153.22,153.19,2.39830738]
[1752059132409,4.707762,153.21,153.19,2.39830738]
[1752059132611,2.44413621,153.22,153.19,2.39830738]
[1752059133309,2.44413621,153.22,153.18,2.44687859]
[1752059134114,2.39830738,153.21,153.18,0.04857121]
[1752059134410,0.04582883,153.22,153.18,0.04857121]
[1752059134411,2.39830738,153.2,153.18,0.04857121]
[1752059141120,0.04582883,153.22,153.18,0.04857121]
[1752059141418,4.35807825,153.21,153.18,0.04857121]
[1752059141619,2.39830738,153.2,153.18,0.04857121]
[1752059141809,0.04582883,153.22,153.18,0.04857121]
[1752059142009,2.39830738,153.2,153.18,0.04857121]
[1752059152128,0.04582883,153.22,153.18,0.04857121]
[1752059152326,11.55225638,153.21,153.18,0.04857121]
[1752059152527,2.39830738,153.21,153.18,0.04857121]
[1752059152729,2.39830738,153.2,153.18,0.04857121]
[1752059154328,2.39830738,153.21,153.18,0.04857121]
[1752059158236,2.39830738,153.2,153.18,0.04857121]
[1752059172545,2.39830738,153.21,153.18,0.04857121]
[1752059173242,2.39872391,153.21,153.18,0.04857121]
[1752059185247,0.04582883,153.22,153.18,0.04857121]
[1752059185444,11.56465623,153.21,153.18,0.04857121]
[1752059185743,2.39872391,153.21,153.18,0.04857121]
[1752059186446,9.16619404,153.2,153.18,0.04857121]
[1752059186647,2.39872391,153.21,153.18,0.04857121]
[1752059186946,9.16619404,153.2,153.18,0.04857121]
[1752059187147,2.39872391,153.21,153.18,0.04857121]
[1752059187348,9.16589315,153.2,153.18,0.04857121]
[1752059187648,2.39872391,153.21,153.18,0.04857121]
[1752059187848,9.16589315,153.2,153.18,0.04857121]
[1752059188047,2.39872391,153.21,153.18,0.04857121]
[1752059188344,9.16589315,153.2,153.18,0.04857121]
[1752059188545,2.39872391,153.21,153.18,0.04857121]
[1752059193454,0.04582883,153.22,153.18,0.04857121]
[1752059193647,11.5643522,153.21,153.18,0.04857121]
[1752059193847,2.39872391,153.21,153.18,0.04857121]
[1752059195857,0.04582883,153.22,153.18,0.04857121]
[1752059196055,19.97263198,153.21,153.18,0.04857121]
[1752059196354,2.39872391,153.21,153.18,0.04857121]
[1752059197554,0.04582883,153.22,153.18,0.04857121]
[1752059197754,17.57390704,153.21,153.18,0.04857121]
[1752059198057,2.39872391,153.21,153.18,0.04857121]
[1752059204960,0.04582883,153.22,153.18,0.04857121]
[1752059205165,17.57390632,153.21,153.18,0.04857121]
[1752059205360,2.44455274,153.22,153.18,0.04857121]
[1752059205660,17.57391768,153.21,153.18,0.04857121]
[1752059205963,2.44455274,153.22,153.18,0.04857121]
[1752059206161,17.57391768,153.21,153.18,0.04857121]
[1752059206357,2.44455274,153.22,153.18,0.04857121]
[1752059206558,17.57392851,153.21,153.18,2.44729512]
[1752059206753,0.04582883,153.22,153.2,2.39872391]
[1752059206959,9.16487811,153.21,153.2,2.39765478]
[1752059207459,0.04582883,153.22,153.2,2.39765478]
[1752059207653,0.04582883,153.22,153.21,2.39765478]
[1752059207863,8.45224396,153.22,153.21,2.39765478]
[1752059208066,0.04582883,153.22,153.21,2.39765478]
[1752059210859,0.04582883,153.22,153.18,0.04857121]
[1752059211056,0.04582883,153.22,153.21,2.39765478]
[1752059212364,2.39765478,153.27,153.21,2.39765478]
[1752059212564,17.58632528,153.26,153.24,2.39765478]
[1752059212856,9.19239142,153.25,153.23,2.39765478]
[1752059213062,2.39765478,153.27,153.23,2.39765478]
[1752059213363,17.60601206,153.26,153.23,2.39765478]
[1752059213663,4.86509057,153.25,153.23,2.44004965]
[1752059213964,2.39765478,153.24,153.23,0.04239487]
[1752059232773,11.4587731,153.29,153.23,0.04239487]
[1752059232974,2.39765478,153.24,153.23,0.04239487]
[1752059236175,2.2852,153.29,153.23,0.04239487]
[1752059236477,2.39765478,153.26,153.23,2.44004965]
[1752059236677,2.39765478,153.27,153.23,2.44004965]
[1752059236878,19.82629111,153.26,153.23,0.04239487]
[1752059237176,2.39765478,153.26,153.23,0.04239487]
[1752059238483,2.39765478,153.25,153.23,0.04239487]
[1752059239180,2.2852,153.29,153.23,0.04239487]
[1752059239377,2.39765478,153.25,153.23,0.04239487]
[1752059241380,2.39765478,153.24,153.23,0.04239487]
[1752059244384,7.20685979,153.24,153.23,0.04239487]
[1752059244679,11.5161647,153.24,153.23,0.04239487]
[1752059245475,2.39765478,153.24,153.23,0.04239487]
[1752059247178,0.04552831,153.26,153.23,0.04239487]
[1752059247478,11.4959478,153.25,153.23,0.04239487]
[1752059247679,2.39765478,153.25,153.23,0.04239487]
[1752059248176,0.04552831,153.26,153.23,0.04239487]
[1752059248482,11.49709659,153.25,153.23,0.04239487]
[1752059248682,2.39765478,153.25,153.23,0.04239487]
[1752059250483,2.39765478,153.24,153.23,0.04239487]
[1752059256982,2.39765478,153.25,153.23,0.04239487]
[1752059259386,0.04552831,153.26,153.23,0.04239487]
[1752059259587,19.92481139,153.25,153.23,0.04239487]
[1752059259885,2.39765478,153.25,153.23,0.04239487]
[1752059264786,0.04552831,153.26,153.23,0.04239487]
[1752059264982,19.92468451,153.25,153.23,0.04239487]
[1752059265182,2.39765478,153.25,153.23,0.04239487]
[1752059266482,0.04552831,153.26,153.23,0.04239487]
[1752059266684,2.39765478,153.24,153.23,0.04239487]
[1752059267786,0.04552831,153.26,153.23,0.04239487]
[1752059267985,2.39765478,153.24,153.23,0.04239487]
[1752059268187,11.50149275,153.24,153.23,0.04239487]
[1752059268489,6.70796766,153.24,153.23,0.04239487]
[1752059268684,11.501655,153.24,153.23,0.04239487]
[1752059277399,11.51165461,153.24,153.23,0.04239487]
[1752059281307,4.79368734,153.24,153.23,0.04239487]
[1752059282007,2.44318309,153.26,153.23,0.04239487]
[1752059282206,9.19172001,153.25,153.23,0.04239487]
[1752059282406,2.44318309,153.26,153.23,0.04239487]
[1752059282608,11.58918029,153.25,153.23,0.04239487]
[1752059282804,6.71800869,153.24,153.23,0.04239487]
[1752059283113,11.58939516,153.24,153.23,0.04239487]
[1752059283311,2.39765478,153.24,153.23,0.04239487]
[1752059284212,2.39765478,153.25,153.23,0.04239487]
[1752059291311,2.44318309,153.26,153.23,0.04239487]
[1752059291513,9.1962953,153.25,153.23,0.04239487]
[1752059291810,2.44318309,153.26,153.23,0.04239487]
[1752059292011,9.1962953,153.25,153.23,0.04239487]
[1752059292211,2.44318309,153.26,153.23,0.04239487]
[1752059292413,9.19633764,153.25,153.23,0.04239487]
[1752059292614,2.44318309,153.26,153.23,0.04239487]
[1752059292812,9.19632577,153.25,153.23,0.04239487]
[1752059293008,2.44318309,153.26,153.23,0.04239487]
[1752059293211,9.19632577,153.25,153.23,0.04239487]
[1752059293411,2.44318309,153.26,153.23,0.04239487]
[1752059293611,9.1963741,153.25,153.23,0.04239487]
[1752059293813,2.44318309,153.26,153.23,0.04239487]
[1752059294005,4.87124061,153.25,153.23,0.04239487]
[1752059294210,0.04552831,153.26,153.23,2.44004965]
[1752059294411,9.19644414,153.25,153.23,2.44004965]
[1752059294612,0.04552831,153.26,153.23,0.04239487]
[1752059294811,9.19644414,153.25,153.23,2.44004965]
[1752059295008,0.04552831,153.26,153.23,2.44004965]
[1752059295213,9.19644414,153.25,153.23,2.44004965]
[1752059295417,0.04552831,153.26,153.23,2.44004965]
[1752059295616,9.19636959,153.25,153.23,2.44004965]
[1752059295917,0.04552831,153.26,153.23,0.04239487]
[1752059296119,9.19636959,153.25,153.23,0.04239487]
[1752059296319,2.44318309,153.26,153.23,0.04239487]
[1752059296514,9.19629782,153.25,153.23,0.04239487]
[1752059296714,2.44318309,153.26,153.23,0.04239487]
[1752059296918,9.19629798,153.25,153.23,0.04239487]
[1752059297122,2.44318309,153.26,153.23,0.04239487]
[1752059297321,9.19622452,153.25,153.23,0.04239487]
[1752059297521,2.44318309,153.26,153.23,0.04239487]
[1752059297722,9.21866868,153.25,153.23,0.04239487]
[1752059298021,2.44318309,153.26,153.23,0.04239487]
[1752059298216,9.21846228,153.25,153.23,0.04239487]
[1752059298421,2.44318309,153.26,153.23,0.04239487]
[1752059298619,9.22288912,153.25,153.23,0.04239487]
[1752059298819,2.44318309,153.26,153.23,0.04239487]
[1752059299020,9.22288912,153.25,153.23,0.04239487]
[1752059299216,2.44318309,153.26,153.23,0.04239487]
[1752059299424,9.2224418,153.25,153.23,0.04239487]
[1752059299626,0.04552831,153.26,153.23,0.04239487]
[1752059299820,9.2224418,153.25,153.23,0.04239487]
[1752059300017,2.44318309,153.26,153.23,2.44004965]
[1752059300222,9.2224418,153.25,153.23,2.44004965]
[1752059300422,2.44318309,153.26,153.23,2.44004965]
[1752059300723,4.89278563,153.25,153.23,2.44004965]
[1752059300923,2.44318309,153.26,153.23,2.44004965]
[1752059301127,4.89278559,153.25,153.23,2.44004965]
[1752059301326,2.44318309,153.26,153.23,2.44004965]
[1752059302323,0.04552831,153.26,153.23,2.44004965]
[1752059302621,0.04552831,153.26,153.25,2.39765478]
[1752059302827,9.25502182,153.26,153.25,2.39765478]
[1752059303128,0.04552831,153.26,153.25,2.39765478]
[1752059303628,2.44318309,153.26,153.23,0.04239487]
[1752059303926,2.39765478,153.25,153.23,0.04239487]
[1752059304126,2.44292142,153.26,153.23,0.04239487]
[1752059305331,2.39739311,153.24,153.23,0.04239487]
[1752059305530,7.33016789,153.24,153.23,0.04239487]
[1752059306328,7.3308638,153.24,153.23,0.04239487]
[1752059306528,2.39808902,153.24,153.23,0.04239487]
[1752059309732,11.67657393,153.24,153.23,0.04239487]
[1752059311829,11.67652187,153.24,153.23,0.04239487]
[1752059314633,11.676358,153.24,153.23,0.04239487]
[1752059314937,0.04552831,153.26,153.23,2.44048389]
[1752059315234,9.2725091,153.25,153.23,0.04239487]
[1752059315431,4.92102384,153.24,153.23,0.04239487]
[1752059316235,2.39808902,153.25,153.23,0.04239487]
[1752059316638,9.27287608,153.24,153.23,0.04239487]
[1752059317536,2.39808902,153.25,153.23,0.04239487]
[1752059317737,9.2731897,153.24,153.23,0.04239487]
[1752059318438,2.39808902,153.25,153.23,0.04239487]
[1752059319637,9.27825873,153.24,153.23,0.04239487]
[1752059320537,2.39808902,153.25,153.23,0.04239487]
[1752059321640,0.04552831,153.26,153.23,0.04239487]
[1752059321835,11.6764536,153.25,153.23,0.04239487]
[1752059322035,2.39808902,153.25,153.23,0.04239487]
[1752059323140,0.04552831,153.26,153.23,0.04239487]
[1752059323335,11.67676257,153.25,153.23,0.04239487]
[1752059323540,2.39808902,153.25,153.23,0.04239487]
[1752059324042,2.44361733,153.26,153.23,0.04239487]
[1752059324232,9.27859854,153.25,153.23,0.04239487]
[1752059324437,2.44361733,153.26,153.23,0.04239487]
[1752059324636,9.2788243,153.25,153.23,0.04239487]
[1752059324831,2.44361733,153.26,153.23,0.04239487]
[1752059325040,11.67691332,153.25,153.23,0.04239487]
[1752059325239,2.39808902,153.25,153.23,0.04239487]
[1752059327439,0.04552831,153.26,153.24,2.39808902]
[1752059327742,0.04552831,153.26,153.25,2.39808902]
[1752059327933,9.33958928,153.26,153.25,2.39808902]
[1752059329442,9.33856893,153.26,153.25,2.39808902]
[1752059329941,0.04552831,153.26,153.24,2.39808902]
[1752059333843,0.04552831,153.26,153.25,2.39808902]
[1752059339552,0.04552831,153.26,153.23,0.04239487]
[1752059339752,0.04552831,153.26,153.25,2.39808902]
[1752059346055,0.04552831,153.26,153.23,0.04239487]
[1752059346256,0.04552831,153.26,153.25,2.39808902]
[1752059353460,0.04552831,153.26,153.23,0.04239487]
[1752059353661,0.04552831,153.26,153.25,2.39808902]
[1752059355252,0.04552831,153.26,153.23,0.04239487]
[1752059355453,2.44361733,153.26,153.23,0.04239487]
[1752059355658,2.39808902,153.24,153.23,0.04239487]
[1752059357865,0.04552831,153.26,153.23,0.04239487]
[1752059358063,2.39808902,153.24,153.23,0.04239487]
[1752059358565,2.39808902,153.25,153.23,0.04239487]
[1752059361771,0.04552831,153.26,153.23,0.04239487]
[1752059361973,2.39808902,153.25,153.23,0.04239487]
[1752059364273,0.04552831,153.26,153.23,0.04239487]
[1752059364475,2.39808902,153.25,153.23,0.04239487]
[1752059365770,2.39808902,153.24,153.23,0.04239487]
[1752059367074,0.04552831,153.26,153.23,0.04239487]
[1752059367274,2.39808902,153.24,153.23,0.04239487]
[1752059368178,2.39808902,153.25,153.23,0.04239487]
[1752059368475,0.04552831,153.26,153.23,0.04239487]
[1752059368669,2.39808902,153.25,153.23,0.04239487]
[1752059369274,0.04552831,153.26,153.23,2.44048389]
[1752059369476,0.04552831,153.26,153.25,2.39808902]
[1752059373285,0.04552831,153.26,153.23,0.04239487]
[1752059373480,0.04552831,153.26,153.25,2.39808902]
[1752059374187,2.2646,153.3,153.25,2.39808902]
[1752059374484,4.66268902,153.3,153.27,2.39808902]
[1752059375380,4.66268902,153.3,153.27,2.4479738]
[1752059377483,4.66268902,153.3,153.27,0.04988478]
[1752059384797,2.39808902,153.29,153.27,0.04988478]
[1752059393699,2.39808902,153.28,153.27,0.04988478]
[1752059399105,2.2646,153.3,153.27,0.04988478]
[1752059399401,2.39808902,153.28,153.27,0.04988478]
[1752059400305,2.2646,153.3,153.27,0.04988478]
[1752059400502,2.39808902,153.28,153.27,0.04988478]
[1752059412605,15.78898869,153.28,153.17,139.13985958]
[1752059412910,2.39808902,153.25,153.22,2.39808902]
[1752059413909,2.39808902,153.25,153.22,2.43988094]
[1752059424730,2.39808902,153.25,153.22,0.04179192]
[1752059425027,2.39808902,153.25,153.22,2.43988094]
[1752059426029,2.2646,153.3,153.23,2.39808902]
[1752059426329,2.39808902,153.27,153.24,2.39808902]
[1752059426931,2.39808902,153.27,153.24,2.44764415]
[1752059427129,2.2646,153.3,153.25,2.39808902]
[1752059427329,20.04923088,153.29,153.25,2.39808902]
[1752059427531,4.89678463,153.28,153.25,2.39808902]
[1752059427734,2.39808902,153.29,153.25,2.39808902]
[1752059427932,4.89702045,153.28,153.25,2.39808902]
[1752059428133,2.39808902,153.29,153.25,2.39808902]
[1752059428433,4.94637251,153.28,153.25,2.39808902]
[1752059428627,0.04924035,153.28,153.25,2.39808902]
[1752059430933,2.44732937,153.28,153.25,2.39808902]
[1752059432035,2.44732937,153.28,153.24,2.44764415]
[1752059434437,2.44732937,153.28,153.24,0.04955513]
[1752059434634,2.44732937,153.28,153.24,2.44764415]
[1752059437441,2.44732937,153.28,153.24,0.04955513]
[1752059437646,2.44732937,153.28,153.24,2.44764415]
[1752059437647,2.39808902,153.27,153.24,2.44764415]
[1752059438245,0.04924035,153.28,153.24,2.44764415]
[1752059438448,2.44732937,153.28,153.24,2.44764415]
[1752059438949,7.31941111,153.27,153.24,0.04955513]
[1752059439147,2.39808902,153.27,153.24,0.04955513]
[1752059439644,2.39808902,153.26,153.24,0.04955513]
[1752059440549,0.04924035,153.28,153.24,0.04955513]
[1752059440846,7.31943912,153.27,153.24,0.04955513]
[1752059441048,2.39808902,153.27,153.24,0.04955513]
[1752059445054,2.44732937,153.28,153.24,2.44764415]
[1752059449257,2.39808902,153.27,153.24,2.44764415]
[1752059449956,2.39808902,153.27,153.24,0.04955513]
[1752059450861,0.04924035,153.28,153.24,2.44764415]
[1752059451059,0.04924035,153.28,153.25,2.39808902]
[1752059451567,2.44732937,153.28,153.24,2.44764415]
[1752059453655,0.04924035,153.28,153.24,0.04955513]
[1752059453961,2.39808902,153.26,153.24,0.04955513]
[1752059456960,2.39808902,153.25,153.24,0.04955513]
[1752059458662,2.39808902,153.26,153.24,0.04955513]
[1752059460158,2.39808902,153.27,153.24,0.04955513]
[1752059460359,2.44732937,153.28,153.24,0.04955513]
[1752059461266,2.44732937,153.28,153.24,2.44764415]
[1752059464467,2.39808902,153.27,153.24,0.04955513]
[1752059467170,2.44732937,153.28,153.24,2.44764415]
[1752059469975,2.44732937,153.28,153.24,0.04955513]
[1752059470170,2.39808902,153.27,153.24,0.04955513]
[1752059471677,2.39808902,153.26,153.24,0.04955513]
[1752059473166,2.39808902,153.27,153.24,0.04955513]
[1752059475775,0.04924035,153.28,153.24,0.04955513]
[1752059475980,4.87028567,153.27,153.24,0.04955513]
[1752059476279,2.39808902,153.27,153.24,0.04955513]
[1752059479284,0.04924035,153.28,153.24,0.04955513]
[1752059479485,11.62762361,153.27,153.24,0.04955513]
[1752059479687,2.39808902,153.27,153.24,0.04955513]
[1752059481887,0.04924035,153.28,153.24,0.04955513]
[1752059482085,11.62814026,153.27,153.24,0.04955513]
[1752059482287,2.39808902,153.27,153.24,0.04955513]
[1752059484890,0.04924035,153.28,153.24,0.04955513]
[1752059485189,11.63975948,153.27,153.24,0.04955513]
[1752059485489,2.39808902,153.27,153.24,0.04955513]
[1752059488891,2.44732937,153.28,153.24,0.04955513]
[1752059489091,9.2420792,153.27,153.24,0.04955513]
[1752059489390,2.44732937,153.28,153.24,0.04955513]
[1752059489590,9.24219218,153.27,153.24,0.04955513]
[1752059489791,2.44732937,153.28,153.24,0.04955513]
[1752059489991,9.24219218,153.27,153.24,0.04955513]
[1752059490189,2.44732937,153.28,153.24,2.44764415]
[1752059490390,9.24219177,153.27,153.24,2.44764415]
[1752059490593,2.44732937,153.28,153.24,2.44764415]
[1752059490794,9.24219175,153.27,153.24,2.44764415]
[1752059490992,2.44732937,153.28,153.24,2.44764415]
[1752059491194,9.24216041,153.27,153.24,2.44764415]
[1752059491390,2.44732937,153.28,153.24,2.44764415]
[1752059491596,9.24219353,153.27,153.24,2.44764415]
[1752059491789,2.44732937,153.28,153.24,2.44764415]
[1752059491991,9.24219352,153.27,153.24,2.44764415]
[1752059492290,2.44732937,153.28,153.24,2.44764415]
[1752059492485,9.24253406,153.27,153.24,2.44764415]
[1752059492690,2.44732937,153.28,153.24,2.44764415]
[1752059492891,9.24253406,153.27,153.24,2.44764415]
[1752059493090,2.39808902,153.27,153.24,0.04955513]
[1752059495191,2.44732937,153.28,153.24,0.04955513]
[1752059496696,0.04924035,153.28,153.24,0.04955513]
[1752059496998,2.44732937,153.28,153.24,2.44764415]
[1752059497397,0.04924035,153.28,153.24,2.44764415]
[1752059497599,0.04924035,153.28,153.25,2.39808902]
[1752059498197,0.04924035,153.28,153.26,2.39808902]
[1752059500996,0.04924035,153.28,153.25,2.39808902]
[1752059504300,0.04924035,153.28,153.24,0.04955513]
[1752059504500,0.04924035,153.28,153.25,2.39808902]
[1752059506103,0.04924035,153.28,153.24,0.04955513]
[1752059506291,0.04924035,153.28,153.25,2.39808902]
[1752059507901,0.04924035,153.28,153.26,2.39808902]
[1752059510101,0.04924035,153.28,153.25,2.39808902]
[1752059510700,0.04924035,153.28,153.26,2.39808902]
[1752059511997,2.44732937,153.28,153.24,2.44764415]
[1752059514504,2.44732937,153.28,153.24,0.04955513]
[1752059514696,2.44732937,153.28,153.24,2.44764415]
[1752059516307,2.39808902,153.27,153.24,2.44764415]
[1752059517500,2.39808902,153.27,153.24,0.04955513]
[1752059522407,2.44732937,153.28,153.24,2.44764415]
[1752059524015,0.04924035,153.28,153.24,2.44764415]
[1752059524207,2.44732937,153.28,153.24,2.44764415]
[1752059524407,0.04924035,153.28,153.25,2.39808902]
[1752059524609,0.04924035,153.28,153.26,2.39543894]
[1752059524807,0.04924035,153.28,153.26,2.39547546]
[1752059525312,0.04924035,153.28,153.27,2.39547546]
[1752059527113,0.04924035,153.28,153.26,2.39547546]
[1752059528513,0.04924035,153.28,153.27,2.39547546]
[1752059531817,0.04924035,153.28,153.24,0.04955513]
[1752059532119,0.04924035,153.28,153.27,2.39547546]
[1752059534115,2.39547546,153.31,153.27,2.39547546]
[1752059534309,2.39547546,153.32,153.29,2.39547546]
[1752059534515,9.36276739,153.31,153.29,2.39547546]
[1752059534711,2.39547546,153.32,153.29,2.39547546]
[1752059534913,9.36276739,153.31,153.29,2.39547546]
[1752059535114,2.39547546,153.32,153.29,2.39547546]
[1752059535415,11.75818922,153.31,153.29,2.39547546]
[1752059535615,2.39547546,153.32,153.29,2.39547546]
[1752059537118,2.39547546,153.31,153.28,2.43764226]
[1752059537824,2.39547546,153.3,153.28,0.0421668]
[1752059540219,2.1335,153.34,153.28,0.0421668]
[1752059540421,2.39547546,153.3,153.28,0.0421668]
[1752059540717,2.39547546,153.31,153.28,0.0421668]
[1752059545120,2.39547546,153.3,153.28,0.0421668]
[1752059545522,2.1335,153.34,153.28,0.0421668]
[1752059545821,2.39547546,153.3,153.28,0.0421668]
[1752059547022,2.39547546,153.31,153.28,0.0421668]
[1752059547423,2.1335,153.34,153.28,0.0421668]
[1752059547424,2.1335,153.34,153.29,2.39547546]
[1752059547623,17.79201252,153.33,153.3,2.39547546]
[1752059547819,9.36809194,153.32,153.3,2.39547546]
[1752059548020,4.52897546,153.34,153.29,2.39547546]
[1752059548216,9.36759606,153.33,153.29,2.39547546]
[1752059548424,9.36759606,153.32,153.29,2.39547546]
[1752059548622,4.52897546,153.34,153.29,2.39547546]
[1752059548917,9.36658451,153.33,153.29,2.39547546]
[1752059549229,9.36658451,153.32,153.29,2.39547546]
[1752059549422,4.52897546,153.34,153.29,2.39547546]
[1752059549721,9.36565181,153.33,153.29,2.39547546]
[1752059550024,9.36565181,153.32,153.3,2.39547546]
[1752059550220,4.52897546,153.34,153.31,2.39547546]
[1752059550418,9.36463065,153.33,153.31,2.39547546]
[1752059550622,2.1565,153.37,153.31,2.39547546]
[1752059550824,2.39547546,153.35,153.27,138.68668463]
[1752059551020,9.36393383,153.34,153.32,0.04283844]
[1752059551221,2.39547546,153.35,153.32,2.4383139]
[1752059551416,9.36159916,153.34,153.32,2.4383139]
[1752059551617,2.44101352,153.35,153.32,2.4383139]
[1752059551822,9.36154332,153.34,153.32,2.4383139]
[1752059552022,2.44101352,153.35,153.32,2.4383139]
[1752059552219,9.34623654,153.34,153.32,2.4383139]
[1752059552425,2.44101352,153.35,153.32,2.4383139]
[1752059552726,4.44006834,153.34,153.32,2.4383139]
[1752059552922,2.44101352,153.35,153.32,2.4383139]
[1752059553121,4.44006834,153.34,153.32,0.04283844]
[1752059553323,2.44101352,153.35,153.32,0.04283844]
[1752059553623,4.43921583,153.34,153.32,2.4383139]
[1752059553818,2.44101352,153.35,153.32,0.04283844]
[1752059555628,0.04553806,153.35,153.32,0.04283844]
[1752059555824,2.44101352,153.35,153.32,0.04283844]
[1752059556631,2.39547546,153.33,153.32,0.04283844]
[1752059559634,0.04553806,153.35,153.32,0.04283844]
[1752059559934,2.44101352,153.35,153.32,0.04283844]
[1752059560832,2.39547546,153.34,153.32,0.04283844]
[1752059565035,0.04553806,153.35,153.32,0.04283844]
[1752059565337,2.39547546,153.34,153.32,0.04283844]
[1752059567037,2.39547546,153.33,153.32,0.04283844]
[1752059571635,11.64163813,153.33,153.21,211.17155069]
[1752059571843,2.39547546,153.33,153.29,2.39547546]
[1752059572039,2.39547546,153.34,153.3,2.39547546]
[1752059573039,2.39547546,153.34,153.3,2.4395281]
[1752059573741,2.39456535,153.34,153.3,2.43861799]
[1752059574444,2.39456535,153.34,153.3,0.04405264]
[1752059574740,2.39456535,153.34,153.3,2.43861799]
[1752059575143,2.1565,153.37,153.3,2.43861799]
[1752059575343,2.39456535,153.35,153.3,2.43861799]
[1752059575842,2.39456535,153.34,153.3,2.43861799]
[1752059576141,2.39456535,153.34,153.3,0.04405264]
[1752059581643,2.39456535,153.36,153.31,2.39456535]
[1752059581843,9.17117649,153.35,153.31,2.39456535]
[1752059582043,2.39456535,153.36,153.31,2.39456535]
[1752059582248,9.17120247,153.35,153.32,2.39456535]
[1752059582444,2.39456535,153.36,153.32,2.39456535]
[1752059582650,9.17110689,153.35,153.32,2.39393057]
[1752059582947,2.39393057,153.36,153.32,2.39393057]
[1752059583147,9.17110689,153.35,153.32,2.39393057]
[1752059583348,2.39393057,153.36,153.32,2.39393057]
[1752059583548,11.56565601,153.35,153.32,2.39393057]
[1752059583750,2.39393057,153.35,153.32,2.39393057]
[1752059584050,2.1565,153.37,153.32,2.39393057]
[1752059584248,2.39393057,153.35,153.32,2.39393057]
[1752059585046,2.1565,153.37,153.32,2.39393057]
[1752059585047,2.39393057,153.36,153.32,2.39393057]
[1752059589353,2.1565,153.37,153.32,2.39393057]
[1752059589552,11.61240541,153.36,153.32,2.39393057]
[1752059589752,2.39393057,153.36,153.32,2.39393057]
[1752059590552,4.59133057,153.38,153.34,2.39393057]
[1752059590852,9.21909449,153.37,153.34,2.39393057]
[1752059591050,2.39393057,153.38,153.34,2.44245514]
[1752059591253,4.88298119,153.37,153.34,2.44245514]
[1752059591454,2.39393057,153.38,153.34,2.44245514]
[1752059591654,4.88377158,153.37,153.34,2.44245514]
[1752059591852,2.39393057,153.38,153.34,2.44245514]
[1752059592060,4.88377158,153.37,153.34,2.44245514]
[1752059592353,2.39393057,153.38,153.34,2.44245514]
[1752059592551,7.27784938,153.37,153.34,2.44245514]
[1752059592750,2.39393057,153.37,153.34,2.44245514]
[1752059593955,2.39393057,153.37,153.34,0.04852457]
[1752059595456,2.39393057,153.35,153.34,0.04852457]
[1752059595655,17.59509666,153.35,153.27,4.4489]
[1752059595855,2.39393057,153.34,153.3,2.39393057]
[1752059596354,2.39393057,153.35,153.31,2.39393057]
[1752059597057,2.39393057,153.35,153.31,2.43884669]
[1752059597854,196.05168479,153.4,153.31,2.43884669]
[1752059598057,2.39393057,153.35,153.31,2.43884669]
[1752059601258,2.39393057,153.35,153.31,0.04491612]
[1752059601559,2.39393057,153.35,153.31,2.43884669]
[1752059602955,2.39393057,153.34,153.31,0.04491612]
[1752059603861,2.39393057,153.35,153.31,2.43884669]
[1752059608260,2.39393057,153.36,153.32,2.39393057]
[1752059608754,2.39393057,153.36,153.31,0.04491612]
[1752059608960,2.39393057,153.36,153.32,2.39393057]
[1752059609462,9.15168479,153.4,153.32,2.39393057]
[1752059609661,2.39393057,153.36,153.32,2.39393057]
[1752059618281,2.39393057,153.36,153.31,0.04491612]
[1752059618475,2.39393057,153.36,153.32,2.39393057]
[1752059618676,9.15168479,153.41,153.31,0.04491612]
[1752059618981,2.39393057,153.35,153.31,2.43884669]
[1752059619182,2.39393057,153.36,153.32,2.39393057]
[1752059619784,2.39393057,153.36,153.32,2.44164432]
[1752059620282,2.39393057,153.36,153.32,0.04771375]
[1752059620482,2.39393057,153.36,153.32,2.44164432]
[1752059623183,2.39393057,153.36,153.32,0.04771375]
[1752059623382,2.39393057,153.36,153.32,2.44164432]
[1752059623586,2.39393057,153.36,153.32,0.04771375]
[1752059623984,9.15168479,153.4,153.32,0.04771375]
[1752059624184,2.39399136,153.36,153.32,2.44170511]
[1752059626385,4.91477054,153.35,153.32,2.44170511]
[1752059626579,2.39399136,153.36,153.32,2.44170511]
[1752059626784,4.91477054,153.35,153.32,2.44170511]
[1752059626986,2.39399136,153.36,153.32,2.44170511]
[1752059627184,4.91477054,153.35,153.32,2.44170511]
[1752059627385,2.39399136,153.36,153.32,2.44170511]
[1752059627586,4.91516181,153.35,153.32,2.44170511]
[1752059627790,2.39399136,153.36,153.32,2.44170511]
[1752059629989,4.9154926,153.35,153.32,2.44170511]
[1752059630193,2.39399136,153.36,153.32,2.44170511]
[1752059630389,4.91556034,153.35,153.32,2.44170511]
[1752059630690,2.39399136,153.36,153.32,2.44170511]
[1752059630888,4.91556022,153.35,153.32,0.04771375]
[1752059631188,2.39399136,153.36,153.32,0.04771375]